{"text_format":"1","workbook":"xlsx","n_sheets":3,"sheets":["Springplank","Parameters","Vertalingen"],"not_rendered":{"charts":1,"images":0,"macros":1,"external_links":1,"defined_names":8,"comments":0,"pivot_tables":0},"unopened":[],"bounds":{"document_bytes":16777216,"sheet_cells":100000,"rows_first":2000,"rows_last":500,"rows_between":2000,"halvings":0,"cell_chars":16384,"cell_head_chars":4096},"cells_cut":0,"cells_raw":0,"read":"whole","date_system":"1900"}

{"sheet":"Springplank","index":0,"n_rows":48,"n_cols":28,"rows_kept":48,"cut":false,"hidden":false,"merged":[[1,3,1,10],[13,6,13,8],[13,9,13,11],[17,9,17,11],[19,6,19,8],[19,9,19,11],[18,6,18,8],[18,9,18,11],[14,6,14,8],[14,9,14,11],[17,6,17,8]]}
[]
[null,null,null,{"$f":"Vertalingen!C4","v":"Effect van Springplank op de werkloosheidsvergoeding."}]
[]
[null,{"$f":"Vertalingen!C5","v":"Het dagbedrag van je Dagelijkse Werkloosheidsuitkering (DW) zal verminderd worden met het deel van het bedrag van het dagelijks inkomen"}]
[null,{"$f":"Vertalingen!C6","v":"dat verkregen wordt uit je nevenactiviteit dat 14,84 €  overschrijdt (volgens de index geldig op 1/9/2021)."}]
[]
[null,{"$f":"Vertalingen!C7","v":"Het dagelijks inkomen wordt bekomen door het netto belastbaar jaarinkomen (= bruto - lasten) te delen door 312."}]
[null,null,{"$f":"Vertalingen!C8","v":"(of door je maandelijks inkomen te delen door 26)"}]
[null,{"$f":"Vertalingen!C9","v":"Op basis van deze regel"}]
[null,{"$f":"Vertalingen!C10","v":"1/ Krijg je je volledige werkloosheidsuitkering nog als je netto belastbaar jaarinkomen kleiner of gelijk is aan 14,84 € x 312 = €4630,08 )"}]
[null,{"$f":"Vertalingen!C11","v":"2/ Krijg je geen werkloosheidsuitkering meer als je meer verdiend dan ( 14,84 € + DW) X 312"}]
[null,{"$f":"Vertalingen!C12","v":"3/ Tussen deze bedragen krijg je een werkloosheidsuitkering volgens de formule DW - ( Jaarinkomen/312 - 14,84 € )"}]
[]
[null,{"$f":"Vertalingen!C13","v":"Basisinformatie"},null,null,{"$f":"Vertalingen!C14","v":"Per maand"},null,{"$f":"Vertalingen!C15","v":"Toelage vermindert vanaf"},null,null,{"$f":"Vertalingen!C16","v":"Toelage valt volledig weg vanaf"}]
[null,{"$f":"Vertalingen!C17","v":"Dagelijkse \nWerloosheidsvergoeding (DW)"},38,{"$f":"Vertalingen!C18","v":"of x26"},{"$f":"C15*312/12","v":988},null,{"$f":"Parameter_RVA*312","v":4630.08},null,null,{"$f":"(C15+Parameter_RVA)*312","v":16486.080000000002}]
[null,{"$f":"Vertalingen!C19","v":"Parameter RVA"},14.84,{"$f":"Vertalingen!C20","v":"index 1/9/2021"}]
[]
[null,{"$f":"Vertalingen!C21","v":"Geschat jaarinkomen\nInkomsten - kosten"},9000,null,null,null,{"$f":"Vertalingen!C22","v":"Gemiddeld uitbetaalde\nwerkloosheidsvergoeding"},null,null,{"$f":"IF($C$18<(Parameter_RVA)*312,$C$15,IF($C$18>(Parameter_RVA+$C$15)*312,0,$C$15-($C$18/312-Parameter_RVA)))","v":23.993846153846153}]
[null,null,null,null,null,null,{"$f":"Vertalingen!C23","v":"Ontvangen van RVA"},null,null,{"$f":"C15*312","v":11856}]
[null,{"$f":"Vertalingen!C24","v":"Grafische voorstelling"},null,null,null,null,{"$f":"Vertalingen!C26","v":"Terug te betalen aan RVA"},null,null,{"$f":"(C15-J18)*312","v":4369.92}]
[null,null,null,null,null,null,null,null,null,null,null,null,null,null,{"$f":"Vertalingen!C30","v":"Evolutie van het terug te betalen bedrag aan de RVA in functie van de dagelijkse werkloosheidsvergoeding en het  jaarlijks inkomen uit het zelfstandig beroep;"}]
[]
[null,null,null,null,null,null,null,null,null,null,null,null,null,null,null,{"$f":"Vertalingen!C17","v":"Dagelijkse \nWerloosheidsvergoeding (DW)"}]
[null,null,null,null,null,null,null,null,null,null,null,null,null,null,{"$f":"312*($C$15-IF($C$18<(Parameter_RVA)*312,$C$15,IF($C$18>(Parameter_RVA+$C$15)*312,0,$C$15-($C$18/312-Parameter_RVA))))","v":4369.92},5,10,15,20,25,30,35,40,45,50,55,60,65]
[null,null,null,null,null,null,null,null,null,null,null,null,null,null,1000,0,0,0,0,0,0,0,0,0,0,0,0,0]
[null,null,null,null,null,null,null,null,null,null,null,null,null,null,2000,0,0,0,0,0,0,0,0,0,0,0,0,0]
[null,null,null,null,null,null,null,null,null,null,null,null,null,null,3000,0,0,0,0,0,0,0,0,0,0,0,0,0]
[null,null,null,null,null,null,null,null,null,null,null,null,null,null,4000,0,0,0,0,0,0,0,0,0,0,0,0,0]
[null,null,null,null,null,null,null,null,null,null,null,null,null,null,5000,369.92,369.92,369.92,369.92,369.92,369.92,369.92,369.92,369.92,369.92,369.92,369.92,369.92]
[null,null,null,null,null,null,null,null,null,null,null,null,null,null,6000,1369.9199999999998,1369.9199999999998,1369.9199999999998,1369.9199999999998,1369.9199999999998,1369.9199999999998,1369.9199999999998,1369.9199999999998,1369.9199999999998,1369.9199999999998,1369.9199999999998,1369.9199999999998,1369.9199999999998]
[null,null,null,null,null,null,null,null,null,null,null,null,null,null,7000,1560,2369.9199999999996,2369.9199999999996,2369.9199999999996,2369.9199999999996,2369.9199999999996,2369.9199999999996,2369.9199999999996,2369.9199999999996,2369.9199999999996,2369.9199999999996,2369.9199999999996,2369.9199999999996]
[null,null,null,null,null,null,null,null,null,null,null,null,null,null,8000,1560,3120,3369.9200000000005,3369.9200000000005,3369.9200000000005,3369.9200000000005,3369.9200000000005,3369.9200000000005,3369.9200000000014,3369.9200000000014,3369.9200000000014,3369.9200000000014,3369.9200000000014]
[null,null,null,null,null,null,null,null,null,null,null,null,null,null,9000,1560,3120,4369.92,4369.92,4369.92,4369.92,4369.92,4369.92,4369.92,4369.920000000001,4369.920000000001,4369.920000000001,4369.920000000001]
[null,null,null,null,null,null,null,null,null,null,null,null,null,null,10000,1560,3120,4680,5369.92,5369.92,5369.92,5369.92,5369.92,5369.92,5369.920000000001,5369.920000000001,5369.920000000001,5369.920000000001]
[null,null,null,null,null,null,null,null,null,null,null,null,null,null,11000,1560,3120,4680,6240,6369.92,6369.92,6369.92,6369.92,6369.92,6369.92,6369.920000000001,6369.920000000001,6369.920000000001]
[null,null,null,null,null,null,null,null,null,null,null,null,null,null,12000,1560,3120,4680,6240,7369.9199999999992,7369.9199999999992,7369.9199999999992,7369.9199999999992,7369.9199999999992,7369.9199999999992,7369.9199999999992,7369.920000000001,7369.920000000001]
[null,null,null,null,null,null,null,null,null,null,null,null,null,null,13000,1560,3120,4680,6240,7800,8369.92,8369.92,8369.92,8369.92,8369.92,8369.92,8369.92,8369.92]
[null,null,null,null,null,null,null,null,null,null,null,null,null,null,14000,1560,3120,4680,6240,7800,9360,9369.9199999999983,9369.9199999999983,9369.9199999999983,9369.9199999999983,9369.9199999999983,9369.9199999999983,9369.92]
[null,null,null,null,null,null,null,null,null,null,null,null,null,null,15000,1560,3120,4680,6240,7800,9360,10369.92,10369.92,10369.92,10369.92,10369.92,10369.92,10369.92]
[null,null,null,null,null,null,null,null,null,null,null,null,null,null,16000,1560,3120,4680,6240,7800,9360,10920,11369.92,11369.92,11369.92,11369.92,11369.92,11369.92]
[null,null,null,null,null,null,null,null,null,null,null,null,null,null,17000,1560,3120,4680,6240,7800,9360,10920,12369.92,12369.92,12369.92,12369.92,12369.92,12369.92]
[null,null,null,null,null,null,null,null,null,null,null,null,null,null,18000,1560,3120,4680,6240,7800,9360,10920,12480,13369.92,13369.92,13369.92,13369.92,13369.92]
[null,null,null,null,null,null,null,null,null,null,null,null,null,null,19000,1560,3120,4680,6240,7800,9360,10920,12480,14040,14369.919999999998,14369.919999999998,14369.919999999998,14369.919999999998]
[null,null,null,null,null,null,null,null,null,null,null,null,null,null,20000,1560,3120,4680,6240,7800,9360,10920,12480,14040,15369.919999999998,15369.919999999998,15369.919999999998,15369.919999999998]
[]
[null,null,null,null,null,null,null,null,null,null,null,null,null,null,null,{"$f":"Vertalingen!C31","v":"Niets terug te betalen"}]
[null,null,null,null,null,null,null,null,null,null,null,null,null,null,null,{"$f":"Vertalingen!C32","v":"Gedeeltelijk terug te betalen"}]
[null,null,null,null,null,null,null,null,null,null,null,null,null,null,null,{"$f":"Vertalingen!C33","v":"Alles terug te betalen"}]

{"sheet":"Parameters","index":1,"n_rows":31,"n_cols":8,"rows_kept":31,"cut":false,"hidden":false,"merged":[]}
[]
["Jaarinkomen","Uitkering",null,"Parameter RVA evolueert samen met de spilindex."]
[0,{"$f":"IF(Springplank!B17<(Parameter_RVA)*312,Springplank!$C$15,IF(Springplank!B17>(Parameter_RVA+Springplank!$C$15)*312,0,Springplank!$C$15-(Springplank!B17/312-Parameter_RVA)))","v":38},null,"De spilindex werd in Maart 2020 overschreden.",null,null,null,"(Index van 2013.  107,52)"]
[1000,{"$f":"IF(A4<(Parameter_RVA)*312,Springplank!$C$15,IF(A4>(Parameter_RVA+Springplank!$C$15)*312,0,Springplank!$C$15-(A4/312-Parameter_RVA)))","v":38},null,"De parameter werd op 1/3/2020 op 14,54€ gezet;"]
[2000,{"$f":"IF(A5<(Parameter_RVA)*312,Springplank!$C$15,IF(A5>(Parameter_RVA+Springplank!$C$15)*312,0,Springplank!$C$15-(A5/312-Parameter_RVA)))","v":38},null,"Spilindex volgt de gezondheidsindex. "]
[3000,{"$f":"IF(A6<(Parameter_RVA)*312,Springplank!$C$15,IF(A6>(Parameter_RVA+Springplank!$C$15)*312,0,Springplank!$C$15-(A6/312-Parameter_RVA)))","v":38}]
[4000,{"$f":"IF(A7<(Parameter_RVA)*312,Springplank!$C$15,IF(A7>(Parameter_RVA+Springplank!$C$15)*312,0,Springplank!$C$15-(A7/312-Parameter_RVA)))","v":38}]
[{"$f":"Springplank!$G$15","v":4630.08},{"$f":"IF(A8<(Parameter_RVA)*312,Springplank!$C$15,IF(A8>(Parameter_RVA+Springplank!$C$15)*312,0,Springplank!$C$15-(A8/312-Parameter_RVA)))","v":38}]
[5000,{"$f":"IF(A9<(Parameter_RVA)*312,Springplank!$C$15,IF(A9>(Parameter_RVA+Springplank!$C$15)*312,0,Springplank!$C$15-(A9/312-Parameter_RVA)))","v":36.814358974358974}]
[6000,{"$f":"IF(A10<(Parameter_RVA)*312,Springplank!$C$15,IF(A10>(Parameter_RVA+Springplank!$C$15)*312,0,Springplank!$C$15-(A10/312-Parameter_RVA)))","v":33.60923076923077}]
[7000,{"$f":"IF(A11<(Parameter_RVA)*312,Springplank!$C$15,IF(A11>(Parameter_RVA+Springplank!$C$15)*312,0,Springplank!$C$15-(A11/312-Parameter_RVA)))","v":30.404102564102566}]
[8000,{"$f":"IF(A12<(Parameter_RVA)*312,Springplank!$C$15,IF(A12>(Parameter_RVA+Springplank!$C$15)*312,0,Springplank!$C$15-(A12/312-Parameter_RVA)))","v":27.198974358974358}]
[9000,{"$f":"IF(A13<(Parameter_RVA)*312,Springplank!$C$15,IF(A13>(Parameter_RVA+Springplank!$C$15)*312,0,Springplank!$C$15-(A13/312-Parameter_RVA)))","v":23.993846153846153}]
[10000,{"$f":"IF(A14<(Parameter_RVA)*312,Springplank!$C$15,IF(A14>(Parameter_RVA+Springplank!$C$15)*312,0,Springplank!$C$15-(A14/312-Parameter_RVA)))","v":20.788717948717949}]
[11000,{"$f":"IF(A15<(Parameter_RVA)*312,Springplank!$C$15,IF(A15>(Parameter_RVA+Springplank!$C$15)*312,0,Springplank!$C$15-(A15/312-Parameter_RVA)))","v":17.583589743589744}]
[12000,{"$f":"IF(A16<(Parameter_RVA)*312,Springplank!$C$15,IF(A16>(Parameter_RVA+Springplank!$C$15)*312,0,Springplank!$C$15-(A16/312-Parameter_RVA)))","v":14.37846153846154}]
[{"$f":"Springplank!$J$15","v":16486.080000000002},{"$f":"IF(A17<(Parameter_RVA)*312,Springplank!$C$15,IF(A17>(Parameter_RVA+Springplank!$C$15)*312,0,Springplank!$C$15-(A17/312-Parameter_RVA)))","v":0}]
[13000,{"$f":"IF(A18<(Parameter_RVA)*312,Springplank!$C$15,IF(A18>(Parameter_RVA+Springplank!$C$15)*312,0,Springplank!$C$15-(A18/312-Parameter_RVA)))","v":11.173333333333336}]
[14000,{"$f":"IF(A19<(Parameter_RVA)*312,Springplank!$C$15,IF(A19>(Parameter_RVA+Springplank!$C$15)*312,0,Springplank!$C$15-(A19/312-Parameter_RVA)))","v":7.9682051282051312}]
[15000,{"$f":"IF(A20<(Parameter_RVA)*312,Springplank!$C$15,IF(A20>(Parameter_RVA+Springplank!$C$15)*312,0,Springplank!$C$15-(A20/312-Parameter_RVA)))","v":4.7630769230769232}]
[16000,{"$f":"IF(A21<(Parameter_RVA)*312,Springplank!$C$15,IF(A21>(Parameter_RVA+Springplank!$C$15)*312,0,Springplank!$C$15-(A21/312-Parameter_RVA)))","v":1.5579487179487188}]
[17000,{"$f":"IF(A22<(Parameter_RVA)*312,Springplank!$C$15,IF(A22>(Parameter_RVA+Springplank!$C$15)*312,0,Springplank!$C$15-(A22/312-Parameter_RVA)))","v":0}]
[18000,{"$f":"IF(A23<(Parameter_RVA)*312,Springplank!$C$15,IF(A23>(Parameter_RVA+Springplank!$C$15)*312,0,Springplank!$C$15-(A23/312-Parameter_RVA)))","v":0}]
[19000,{"$f":"IF(A24<(Parameter_RVA)*312,Springplank!$C$15,IF(A24>(Parameter_RVA+Springplank!$C$15)*312,0,Springplank!$C$15-(A24/312-Parameter_RVA)))","v":0}]
[20000,{"$f":"IF(A25<(Parameter_RVA)*312,Springplank!$C$15,IF(A25>(Parameter_RVA+Springplank!$C$15)*312,0,Springplank!$C$15-(A25/312-Parameter_RVA)))","v":0}]
[21000,{"$f":"IF(A26<(Parameter_RVA)*312,Springplank!$C$15,IF(A26>(Parameter_RVA+Springplank!$C$15)*312,0,Springplank!$C$15-(A26/312-Parameter_RVA)))","v":0}]
[22000,{"$f":"IF(A27<(Parameter_RVA)*312,Springplank!$C$15,IF(A27>(Parameter_RVA+Springplank!$C$15)*312,0,Springplank!$C$15-(A27/312-Parameter_RVA)))","v":0}]
[23000,{"$f":"IF(A28<(Parameter_RVA)*312,Springplank!$C$15,IF(A28>(Parameter_RVA+Springplank!$C$15)*312,0,Springplank!$C$15-(A28/312-Parameter_RVA)))","v":0}]
[24000,{"$f":"IF(A29<(Parameter_RVA)*312,Springplank!$C$15,IF(A29>(Parameter_RVA+Springplank!$C$15)*312,0,Springplank!$C$15-(A29/312-Parameter_RVA)))","v":0}]
[25000,{"$f":"IF(A30<(Parameter_RVA)*312,Springplank!$C$15,IF(A30>(Parameter_RVA+Springplank!$C$15)*312,0,Springplank!$C$15-(A30/312-Parameter_RVA)))","v":0}]
[26000,{"$f":"IF(A31<(Parameter_RVA)*312,Springplank!$C$15,IF(A31>(Parameter_RVA+Springplank!$C$15)*312,0,Springplank!$C$15-(A31/312-Parameter_RVA)))","v":0}]

{"sheet":"Vertalingen","index":2,"n_rows":33,"n_cols":6,"rows_kept":33,"cut":false,"hidden":false,"merged":[]}
[null,null,null,"Taalkeuze"]
[null,null,null,1]
[null,null,"Gekozen\n taal","Nederlands","Français","English"]
["D2",1,{"$f":"INDEX(D4:F4,0,$D$2)","v":"Effect van Springplank op de werkloosheidsvergoeding."},"Effect van Springplank op de werkloosheidsvergoeding.","Effet de la mesure tremplin sur l'allocation de chômage","Trampoline"]
["B4",2,{"$f":"INDEX(D5:F5,0,$D$2)","v":"Het dagbedrag van je Dagelijkse Werkloosheidsuitkering (DW) zal verminderd worden met het deel van het bedrag van het dagelijks inkomen"},"Het dagbedrag van je Dagelijkse Werkloosheidsuitkering (DW) zal verminderd worden met het deel van het bedrag van het dagelijks inkomen","Le montant de votre Allocation de Chômage Journalière (ACJ) sera diminuée de la partie du montant du revenu journalier obtenu avec votre activité","Het dagbedrag van je Dagelijkse Werkloosheidsuitkering (DW) zal verminderd worden met het deel van het bedrag van het dagelijks inkomen"]
["B5",3,{"$f":"INDEX(D6:F6,0,$D$2)","v":"dat verkregen wordt uit je nevenactiviteit dat 14,84 €  overschrijdt (volgens de index geldig op 1/9/2021)."},{"$f":"CONCATENATE(\"dat verkregen wordt uit je nevenactiviteit dat \",TEXT(Parameter_RVA,\"#.##0,00 € \"),\" overschrijdt (volgens de index geldig op 1/9/2021).\")","v":"dat verkregen wordt uit je nevenactiviteit dat 14,84 €  overschrijdt (volgens de index geldig op 1/9/2021)."},{"$f":"CONCATENATE(\"complémentaire qui dépasse \",TEXT(Parameter_RVA,\"#.##0,00 € \"),\" (Selon l'indice valable le 1/9/2021)\")","v":"complémentaire qui dépasse 14,84 €  (Selon l'indice valable le 1/9/2021)"},{"$f":"CONCATENATE(\"dat verkregen wordt uit je nevenactiviteit dat \",TEXT(Parameter_RVA,\"#.##0,00 € \"),\" overschrijdt (volgens de index geldig op 1/9/2021).\")","v":"dat verkregen wordt uit je nevenactiviteit dat 14,84 €  overschrijdt (volgens de index geldig op 1/9/2021)."}]
["B7",4,{"$f":"INDEX(D7:F7,0,$D$2)","v":"Het dagelijks inkomen wordt bekomen door het netto belastbaar jaarinkomen (= bruto - lasten) te delen door 312."},"Het dagelijks inkomen wordt bekomen door het netto belastbaar jaarinkomen (= bruto - lasten) te delen door 312.","Le revenu journalier est obtenu en divisant le revenu annuel net imposable (= brut - charges) par 312.","Het dagelijks inkomen wordt bekomen door het netto belastbaar jaarinkomen (= bruto - lasten) te delen door 312."]
["C7",5,{"$f":"INDEX(D8:F8,0,$D$2)","v":"(of door je maandelijks inkomen te delen door 26)"},"(of door je maandelijks inkomen te delen door 26)","(ou en divisant votre revenu mensuel par 26)","(of door je maandelijks inkomen te delen door 26)"]
["B9",6,{"$f":"INDEX(D9:F9,0,$D$2)","v":"Op basis van deze regel"},"Op basis van deze regel","Sur la base de cette règle","Op basis van deze regel"]
["B10",7,{"$f":"INDEX(D10:F10,0,$D$2)","v":"1/ Krijg je je volledige werkloosheidsuitkering nog als je netto belastbaar jaarinkomen kleiner of gelijk is aan 14,84 € x 312 = €4630,08 )"},{"$f":"CONCATENATE(\"1/ Krijg je je volledige werkloosheidsuitkering nog als je netto belastbaar jaarinkomen kleiner of gelijk is aan \",TEXT(Parameter_RVA,\"#.##0,00 €\"),\" x 312 = €\",Parameter_RVA*312,\" )\")","v":"1/ Krijg je je volledige werkloosheidsuitkering nog als je netto belastbaar jaarinkomen kleiner of gelijk is aan 14,84 € x 312 = €4630,08 )"},{"$f":"CONCATENATE(\"1/ Vous recevrez votre allocation de chômage complète si votre revenu annuel net imposable est inférieur ou égal à \",TEXT(Parameter_RVA,\"#.##0,00 €\"),\" x 312 = €\",Parameter_RVA*312,\" )\")","v":"1/ Vous recevrez votre allocation de chômage complète si votre revenu annuel net imposable est inférieur ou égal à 14,84 € x 312 = €4630,08 )"},{"$f":"CONCATENATE(\"1/ Krijg je je volledige werkloosheidsuitkering nog als je netto belastbaar jaarinkomen kleiner of gelijk is aan \",TEXT(Parameter_RVA,\"#.##0,00 €\"),\" x 312 = €\",Parameter_RVA*312,\" )\")","v":"1/ Krijg je je volledige werkloosheidsuitkering nog als je netto belastbaar jaarinkomen kleiner of gelijk is aan 14,84 € x 312 = €4630,08 )"}]
["B11",8,{"$f":"INDEX(D11:F11,0,$D$2)","v":"2/ Krijg je geen werkloosheidsuitkering meer als je meer verdiend dan ( 14,84 € + DW) X 312"},{"$f":"CONCATENATE(\"2/ Krijg je geen werkloosheidsuitkering meer als je meer verdiend dan ( \",TEXT(Parameter_RVA,\"#.##0,00 €\"),\" + DW) X 312\")","v":"2/ Krijg je geen werkloosheidsuitkering meer als je meer verdiend dan ( 14,84 € + DW) X 312"},{"$f":"CONCATENATE(\"2/ Vous ne recevrez pas d'allocations de chômage si vous gagnez plus de ( \",TEXT(Parameter_RVA,\"#.##0,00 €\"),\" + ACJ) X 312\")","v":"2/ Vous ne recevrez pas d'allocations de chômage si vous gagnez plus de ( 14,84 € + ACJ) X 312"},{"$f":"CONCATENATE(\"2/ Krijg je geen werkloosheidsuitkering meer als je meer verdiend dan ( \",TEXT(Parameter_RVA,\"#.##0,00 €\"),\" + DW) X 312\")","v":"2/ Krijg je geen werkloosheidsuitkering meer als je meer verdiend dan ( 14,84 € + DW) X 312"}]
["B12",9,{"$f":"INDEX(D12:F12,0,$D$2)","v":"3/ Tussen deze bedragen krijg je een werkloosheidsuitkering volgens de formule DW - ( Jaarinkomen/312 - 14,84 € )"},{"$f":"CONCATENATE(\"3/ Tussen deze bedragen krijg je een werkloosheidsuitkering volgens de formule DW - ( Jaarinkomen/312 - \",TEXT(Parameter_RVA,\"#.##0,00 €\"),\" )\")","v":"3/ Tussen deze bedragen krijg je een werkloosheidsuitkering volgens de formule DW - ( Jaarinkomen/312 - 14,84 € )"},{"$f":"CONCATENATE(\"3/ Entre ces montants, vous recevrez des allocations de chômage selon la formule ACJ - ( Revenus annuels/312 - \",TEXT(Parameter_RVA,\"#.##0,00 €\"),\" )\")","v":"3/ Entre ces montants, vous recevrez des allocations de chômage selon la formule ACJ - ( Revenus annuels/312 - 14,84 € )"},{"$f":"CONCATENATE(\"3/ Tussen deze bedragen krijg je een werkloosheidsuitkering volgens de formule DW - ( Jaarinkomen/312 - \",TEXT(Parameter_RVA,\"#.##0,00 €\"),\" )\")","v":"3/ Tussen deze bedragen krijg je een werkloosheidsuitkering volgens de formule DW - ( Jaarinkomen/312 - 14,84 € )"}]
["B14",10,{"$f":"INDEX(D13:F13,0,$D$2)","v":"Basisinformatie"},"Basisinformatie","Informations de base","Basisinformatie"]
["E14",11,{"$f":"INDEX(D14:F14,0,$D$2)","v":"Per maand"},"Per maand","Mensuel","Monthly"]
["G14",12,{"$f":"INDEX(D15:F15,0,$D$2)","v":"Toelage vermindert vanaf"},"Toelage vermindert vanaf","L'allocation diminue à partir de","Toelage vermindert vanaf"]
["J14",13,{"$f":"INDEX(D16:F16,0,$D$2)","v":"Toelage valt volledig weg vanaf"},"Toelage valt volledig weg vanaf","L'allocation est supprimée à partir de","Toelage valt volledig weg vanaf"]
["B15",14,{"$f":"INDEX(D17:F17,0,$D$2)","v":"Dagelijkse \nWerloosheidsvergoeding (DW)"},"Dagelijkse \nWerloosheidsvergoeding (DW)","Allocation de chômage journalière (ACJ)","Dagelijkse \nWerloosheidsvergoeding (DW)"]
["D15",15,{"$f":"INDEX(D18:F18,0,$D$2)","v":"of x26"},"of x26","ou x26","or x26"]
["B16",16,{"$f":"INDEX(D19:F19,0,$D$2)","v":"Parameter RVA"},"Parameter RVA","Paramètre ONEM","Parameter RVA"]
["D16",17,{"$f":"INDEX(D20:F20,0,$D$2)","v":"index 1/9/2021"},"index 1/9/2021","index 1/9/2021","index 1/9/2021"]
["B18",18,{"$f":"INDEX(D21:F21,0,$D$2)","v":"Geschat jaarinkomen\nInkomsten - kosten"},"Geschat jaarinkomen\nInkomsten - kosten","Estimation du revenu annuel\nRecettes - coûts","Geschat jaarinkomen\nInkomsten - kosten"]
["G18",19,{"$f":"INDEX(D22:F22,0,$D$2)","v":"Gemiddeld uitbetaalde\nwerkloosheidsvergoeding"},"Gemiddeld uitbetaalde\nwerkloosheidsvergoeding","Allocation de chômage moyenne reçue","Gemiddeld uitbetaalde\nwerkloosheidsvergoeding"]
["G19",20,{"$f":"INDEX(D23:F23,0,$D$2)","v":"Ontvangen van RVA"},"Ontvangen van RVA","Reçu de l'ONEM","Ontvangen van RVA"]
["B20",21,{"$f":"INDEX(D24:F24,0,$D$2)","v":"Grafische voorstelling"},"Grafische voorstelling","Graphique","Grafische voorstelling"]
["But C20",22,{"$f":"INDEX(D25:F25,0,$D$2)","v":"Werk grafiek bij"},"Werk grafiek bij","Mise à jour du graphique","Update chart"]
["G20",23,{"$f":"INDEX(D26:F26,0,$D$2)","v":"Terug te betalen aan RVA"},"Terug te betalen aan RVA","Remboursable à l'ONEM","Terug te betalen  aan RVA"]
["Craf 1",24,{"$f":"INDEX(D27:F27,0,$D$2)","v":"Dagelijkse werkloosheidvergoeding in functie \u000bvan het Jaarinkomen"},"Dagelijkse werkloosheidvergoeding in functie \u000bvan het Jaarinkomen","Allocation journalière de chômage en fonction du revenu annuel","Dagelijkse werkloosheidvergoeding in functie \u000bvan het Jaarinkomen"]
["Graf 2",25,{"$f":"INDEX(D28:F28,0,$D$2)","v":"Dagelijkse werkloosheidsvergoeding"},"Dagelijkse werkloosheidsvergoeding","Indemnité journalière de chômage","Dagelijkse werkloosheidsvergoeding"]
["Graf 3",26,{"$f":"INDEX(D29:F29,0,$D$2)","v":"Jaarinkomen"},"Jaarinkomen","Revenu annuel","Jaarinkomen"]
["O21",27,{"$f":"INDEX(D30:F30,0,$D$2)","v":"Evolutie van het terug te betalen bedrag aan de RVA in functie van de dagelijkse werkloosheidsvergoeding en het  jaarlijks inkomen uit het zelfstandig beroep;"},"Evolutie van het terug te betalen bedrag aan de RVA in functie van de dagelijkse werkloosheidsvergoeding en het  jaarlijks inkomen uit het zelfstandig beroep;","Evolution du montant à rembourser à l'ONEM en fonction de l'allocation journalier et le revenu entant que indépendant","Evolution of the amount to pay back to RVA/ONEM related to the daily allowance and the yearly income as independant"]
["P46",28,{"$f":"INDEX(D31:F31,0,$D$2)","v":"Niets terug te betalen"},"Niets terug te betalen","Rien à rembourser","Nothing to pay back"]
["P47",29,{"$f":"INDEX(D32:F32,0,$D$2)","v":"Gedeeltelijk terug te betalen"},"Gedeeltelijk terug te betalen","Partiellement rembourser","Partial pay back"]
["P48",30,{"$f":"INDEX(D33:F33,0,$D$2)","v":"Alles terug te betalen"},"Alles terug te betalen","Tout à rembourser","Pay back everything"]